lending/lending_fUSD_20240504
["ID","MTS","AMOUNT","RATE_DAILY","PERIOD"]
[325399833,1714828316353,-261.67,0.0001299,2]
[325399834,1714828316379,-261.67,0.0001299,2]
[325399835,1714828316404,-261.67,0.0001299,2]
[325399836,1714828316429,-261.67,0.0001299,2]
[325399837,1714828316455,-261.67,0.0001299,2]
[325399838,1714828316866,-261.67,0.0001299,2]
[325399839,1714828316894,-261.67,0.0001299,2]
[325399840,1714828316920,-261.67,0.0001299,2]
[325399841,1714828316945,-261.67,0.0001299,2]
[325399842,1714828316971,-477.3850056,0.00012991,2]
[325399843,1714828316996,-408.9451822,0.00012991,2]
[325399844,1714828317022,-340.5053588,0.00012991,2]
[325399845,1714828317047,-6777.2350418,0.00012991,2]
[325399846,1714828317073,-5805.6235249,0.00012991,2]
[325399847,1714828317097,-4834.0120081,0.00012991,2]
[325399848,1714828317122,-22350.1872456,0.00012991,2]
[325399849,1714828317147,-3121.7290475,0.00012991,2]
[325399852,1714828406816,-539.90058201,0.0001273,2]
[325399853,1714828406842,-1009.26370732,0.00012731,2]
[325399854,1714828406867,-1133.69625658,0.00012731,2]
[325399855,1714828406893,-1291.3552,0.00012891,2]
[325399856,1714828406919,-200.0,0.00012896,2]
[325399857,1714828406944,-1000.0,0.00012896,2]
[325399858,1714828406971,-500.0,0.00012896,2]
[325399859,1714828406998,-1783.78425409,0.000129,2]
[325399899,1714829432561,-536.56930293,0.00011814,2]
[325399900,1714829432572,-303.57,0.00011815,2]
[325399901,1714829432582,-524.56491145,0.00012017,2]
[325399902,1714829432592,-155.0,0.00012018,2]
[325399903,1714829432601,-787.73886562,0.00012025,2]
[325399904,1714829432720,-256.269,0.00012025,2]
[325399905,1714829432862,-1691.91213438,0.00012025,2]
[325399906,1714829432872,-250.0,0.00012076,2]
[325399907,1714829432882,-435.67908555,0.00012149,2]
[325399908,1714829432891,-187.82097201,0.0001215,2]
[325399909,1714829432902,-800.0,0.00012182,2]
[325399910,1714829432911,-405.7177,0.0001225,2]
[325399911,1714829432921,-1500.0,0.00012253,2]
[325399912,1714829432930,-1269.93045052,0.0001235,2]
[325399913,1714829432950,-5008.89940659,0.0001235,2]
[325399914,1714829432960,-300.0,0.000125,4]
[325399915,1714829432970,-600.0,0.000126,4]
[325399916,1714829432980,-200.0,0.00012617,2]
[325399917,1714829432992,-1069.843817,0.00012642,2]
[325399918,1714829433002,-1034.60610385,0.00012642,2]
[325399919,1714829433012,-731.27611648,0.00012642,2]
[325399935,1714829437970,-285.80622231,0.00012642,2]
[325399936,1714829437980,-900.0,0.000127,4]
[325399937,1714829437994,-414.44,0.0001274,2]
[325399938,1714829438008,-441.63,0.00012741,2]
[325399939,1714829438018,-1200.0,0.000128,4]
[325399940,1714829438027,-4027.0617,0.00012891,2]
[325399941,1714829438038,-179.60556812,0.00012896,2]
[325399942,1714829438047,-189.70629741,0.00012896,2]
[325399943,1714829438057,-169.83166843,0.00012896,2]
[325399944,1714829438066,-279.72435897,0.00012897,2]
[325399945,1714829438077,-49780.9515,0.00012898,2]
[325399946,1714829438088,-10818.64864682,0.000129,2]
[325399947,1714829438098,-653.2304,0.000129,2]
[325399949,1714829438107,-187.820972,0.000129,2]
[325399951,1714829438118,-11792.53938368,0.000129,2]
[325399953,1714829438128,-1500.0,0.000129,4]
[325399955,1714829438136,-220.73595912,0.000129,2]
[325399957,1714829438145,-299.12292864,0.000129,2]
[325399959,1714829438160,-694.80077002,0.000129,2]
[325399961,1714829438169,-475.6912474,0.00012989,2]
[325399963,1714829438178,-1597.5795213,0.00012989,2]
[325399965,1714829438187,-14511.9943314,0.00012989,2]
[325399967,1714829438196,-1000.0,0.0001299,2]
[325399969,1714829438206,-308.66254842,0.00012991,4]
[325399971,1714829438215,-200.0,0.00012991,2]
[325399973,1714829438224,-2000.0,0.00012991,2]
[325399975,1714829438233,-1408.7603438,0.00012991,2]
[325399976,1714829438242,-1219.9411663,0.00012991,2]
[325399977,1714829438253,-1031.1219889,0.00012991,2]
[325399978,1714829438263,-12124.592477,0.00012991,2]
[325399979,1714829438276,-289.06058461,0.00012991,2]
[325399980,1714829438308,-420.37258069,0.00012991,2]
[325399981,1714829438318,-11156.0569532,0.00012991,2]
[325399982,1714829438327,-9478.0882641,0.00012991,2]
[325399983,1714829438337,-1468.78992,0.00012991,2]
[325399984,1714829438347,-1778.14775228,0.00012998,2]
[325399985,1714829438356,-1389.43622268,0.00012998,2]
[325399986,1714829438366,-404.63624969,0.00012998,2]
[325399987,1714829438375,-262.0516888,0.00012998,2]
[325399988,1714829438384,-169.29689086,0.00012998,2]
[325399989,1714829438394,-4746.33624396,0.00012998,2]
[325399990,1714829438406,-156.21566749,0.00012998,2]
[325399991,1714829438416,-798.36371552,0.00012998,2]
[325399992,1714829438426,-155.50200221,0.00012998,2]
[325399993,1714829438435,-235.69826919,0.00012998,2]
[325399994,1714829438444,-21590.21166306,0.00012998,2]
[325399995,1714829438457,-1280.21640921,0.00012998,2]
[325400003,1714829439820,-825.93999993,0.00012998,2]
[325400004,1714829439832,-960.535,0.00012998,2]
[325400005,1714829439879,-31057.11890861,0.00012998,2]
[325400006,1714829439889,-184.77312789,0.00012998,2]
[325400007,1714829439899,-685.5415704,0.00012998,2]
[325400008,1714829439911,-307.80802555,0.00012998,2]
[325400009,1714829439920,-195.51391742,0.00012998,2]
[325400010,1714829439930,-324.54761335,0.00012998,2]
[325400011,1714829439939,-155.0,0.00012998,2]
[325400012,1714829439949,-245.28857993,0.00012998,2]
[325400013,1714829439959,-155.0,0.00012998,2]
[325400014,1714829439968,-243.60508632,0.00012998,2]
[325400015,1714829439978,-265.50698915,0.00012998,2]
[325400016,1714829439988,-286.67348432,0.00012998,2]
[325400017,1714829440005,-322.83784195,0.00012998,2]
[325400018,1714829440016,-168.95647242,0.00012998,2]
[325400019,1714829440026,-216.71412108,0.00012999,2]
[325400020,1714829440035,-325.07118162,0.00012999,2]
[325400021,1714829440048,-150.0,0.00012999,2]
[325400022,1714829440058,-421.0,0.00012999,2]
[325400023,1714829440067,-1477.0,0.00012999,2]
[325400024,1714829440078,-2450.0,0.00012999,2]
[325400025,1714829440088,-1139.0,0.00012999,2]
[325400026,1714829440098,-215.0,0.00012999,2]
[325400027,1714829440107,-1643.0,0.00012999,2]
[325400028,1714829440116,-444.0,0.00012999,2]
[325400029,1714829440126,-3141.634,0.00012999,2]
[325400030,1714829440135,-871.098,0.00012999,2]
[325400031,1714829440146,-321.583,0.00012999,2]
[325400032,1714829440158,-542.0,0.00012999,2]
[325400033,1714829440167,-12969.46323961,0.00013,2]
[325400034,1714829440180,-4094.81083067,0.00013,2]
[325400035,1714829440216,-49025.5379091,0.00013,2]
[325400036,1714829440228,-19209.6,0.00013,2]
[325400037,1714829440256,-2185.16867197,0.00013,2]
[325400084,1714829443203,-586.95467805,0.00013,2]
[325400087,1714829445932,-356.09699987,0.00013,2]
[325400088,1714829445944,-3976.68720905,0.00013,2]
[325400089,1714829445980,-8798.12486357,0.00013,2]
[325400118,1714829945685,186.89485018,0.0002,30]
[325400142,1714830632259,-155.0,0.00012254,2]
[325400143,1714830632271,-250.0,0.00012255,2]
[325400144,1714830632282,-237.616096,0.0001246,2]
[325400162,1714830638285,-762.383904,0.0001246,2]
[325400163,1714830638296,-2684.26,0.0001252,2]
[325400164,1714830638306,-157.14,0.00012624,2]
[325400165,1714830638316,-1061.54098901,0.0001274,2]
[325400166,1714830638331,-1115.68577816,0.0001274,2]
[325400167,1714830638341,-150.0,0.00012795,2]
[325400169,1714830638350,-150.0,0.00012808,2]
[325400171,1714830638360,-150.0,0.00012874,2]
[325400172,1714830638371,-200.0,0.00012896,2]
[325400173,1714830638381,-1000.0,0.00012896,2]
[325400174,1714830638391,-4886.17528967,0.00012898,2]
[325400176,1714830642127,-13056.31241033,0.00012898,2]
[325400177,1714830642138,-3234.5679,0.000129,2]
[325400178,1714830642148,-725.7876,0.000129,2]
[325400179,1714830642158,-10809.8277683,0.000129,2]
[325400180,1714830642168,-2657.29250001,0.000129,2]
[325400181,1714830642177,-414.44,0.000129,2]
[325400182,1714830642187,-911.73,0.000129,2]
[325400183,1714830642196,-2616.1119534,0.00012989,2]
[325400184,1714830642206,-341.7997838,0.00012989,2]
[325400185,1714830642216,-277.2045156,0.00012989,2]
[325400186,1714830642225,-2389.3795184,0.00012991,2]
[325400187,1714830642235,-313.518888,0.00012991,2]
[325400188,1714830642244,-254.2683044,0.00012991,2]
[325400189,1714830642254,-371.25457145,0.00012998,2]
[325400190,1714830642263,-394.05333477,0.00012998,2]
[325400191,1714830642272,-295.9816023,0.00012998,2]
[325400192,1714830642283,-155.77020411,0.00012998,2]
[325400193,1714830642293,-155.09875831,0.00012998,2]
[325400194,1714830642304,-367.01083075,0.00012998,2]
[325400195,1714830642314,-155.56628022,0.00012998,2]
[325400196,1714830642325,-324.83465646,0.00012998,2]
[325400197,1714830642336,-500.0,0.00012998,2]
[325400198,1714830642347,-438.0,0.00012999,2]
[325400199,1714830642356,-611.0,0.00012999,2]
[325400200,1714830642368,-808.0,0.00012999,2]
[325400201,1714830642377,-209.0,0.00012999,2]
[325400202,1714830642387,-1786.0,0.00012999,2]
[325400203,1714830642397,-41769.51240696,0.00013,2]
[325400208,1714830642860,-1668.48691337,0.00013,2]
[325400209,1714830642872,-1727.94500003,0.00013,2]
[325400210,1714830642884,-883.9938127,0.00013,2]
[325400250,1714830643323,-399.09614339,0.00013,2]
[325400252,1714830643337,-505.67817695,0.00013,2]
[325400256,1714830643374,-1798.07131388,0.00013,2]
[325400293,1714830647293,-255.243,0.000129,2]
[325400310,1714830718361,150.0,6.94e-05,2]
[325400311,1714830718384,150.0,6.94e-05,2]
[325400312,1714830718415,150.0,6.94e-05,2]
[325400313,1714830718440,13.88524644,6.94e-05,2]
[325400363,1714831840612,-1346.5203891,0.00011,2]
[325400364,1714831840622,-150.0,0.00011688,2]
[325400365,1714831840631,-65.87252925,0.00011716,2]
[325400374,1714831846305,-732.94747075,0.00011716,2]
[325400375,1714831846316,-92.49258164,0.00011769,2]
[325400376,1714831846542,-57.50741836,0.00011769,2]
[325400377,1714831846552,-222.08,0.00011789,2]
[325400378,1714831846561,-150.0,0.0001185,2]
[325400379,1714831846570,-126.41458164,0.00011931,2]
[325400412,1714832285524,-160.49400001,0.00011652,2]
[325400413,1714832285548,-160.49399999,0.00011658,2]
[325400414,1714832285572,-166.96379572,0.00011663,2]
[325400415,1714832285595,-160.49399999,0.00011663,2]
[325400416,1714832285618,-250.0,0.00011751,2]
[325400417,1714832285647,-157.15,0.00011763,2]
[325400418,1714832285674,-200.0,0.00011771,2]
[325400419,1714832285699,-289.87978023,0.00011931,2]
[325400420,1714832285724,-26502.52442406,0.00011931,2]
[325400429,1714833032536,-150.0,0.00011688,2]
[325400430,1714833032546,-250.0,0.0001175,2]
[325400431,1714833032556,-840.0,0.00011774,2]
[325400432,1714833032566,-150.0,0.00011796,2]
[325400433,1714833032576,-305.71,0.00011799,2]
[325400434,1714833032585,-150.0,0.00011904,2]
[325400435,1714833032595,-156.9692701,0.0001193,2]
[325400436,1714833032605,-931.23757547,0.00011931,2]
[325400449,1714833033323,-1730.297936,0.00011931,2]
[325400450,1714833033336,-405.35321406,0.00011931,2]
[325400451,1714833033348,-12202.04000889,0.00011931,2]
[325400455,1714833038583,-4096.53768941,0.00011931,2]
[325400456,1714833038596,-3454.80771277,0.00011931,2]
[325400457,1714833038605,-3000.0,0.00011931,2]
[325400458,1714833038614,-150.0,0.00012012,2]
[325400459,1714833038623,-150.0,0.00012121,2]
[325400460,1714833038633,-150.0,0.00012229,2]
[325400461,1714833038642,-788.93,0.000123,2]
[325400462,1714833038652,-1823.17,0.000123,2]
[325400463,1714833038662,-300.0,0.000123,2]
[325400464,1714833038671,-911.73,0.000123,2]
[325400465,1714833038681,-150.0,0.00012337,2]
[325400466,1714833038690,-6036.46724321,0.00012349,2]
[325400467,1714833038700,-656.49,0.000124,2]
[325400468,1714833038709,-150.0,0.00012445,2]
[325400469,1714833038719,-1000.0,0.000125,2]
[325400470,1714833038729,-436.46,0.000125,2]
[325400471,1714833038738,-1000.0,0.000125,4]
[325400472,1714833038748,-150.0,0.00012553,2]
[325400473,1714833038758,-2100.0,0.000126,4]
[325400474,1714833038767,-150.0,0.00012662,2]
[325400475,1714833038777,-3200.0,0.000127,4]
[325400476,1714833038787,-150.0,0.0001277,2]
[325400477,1714833038795,-828.56,0.00012797,2]
[325400478,1714833038805,-4200.0,0.000128,4]
[325400479,1714833038815,-303.37,0.00012877,2]
[325400480,1714833038825,-300.59,0.00012877,2]
[325400481,1714833038834,-303.7,0.00012877,2]
[325400482,1714833038844,-150.0,0.00012877,2]
[325400483,1714833038854,-419.66,0.00012877,2]
[325400484,1714833038867,-1043.8,0.00012877,2]
[325400485,1714833038877,-150.0,0.00012878,2]
[325400486,1714833039030,-449.981,0.00012892,2]
[325400487,1714833039043,-175.641,0.00012892,2]
[325400488,1714833039053,-318.638931,0.00012895,2]
[325400489,1714833039066,-1000.0,0.00012895,2]
[325400490,1714833039075,-1000.0,0.00012896,2]
[325400491,1714833039085,-200.0,0.00012896,2]
[325400492,1714833039095,-1000.0,0.00012896,2]
[325400493,1714833039105,-1000.0,0.00012896,2]
[325400494,1714833039114,-10930.12562194,0.000129,2]
[325400495,1714833039124,-858.2177,0.000129,2]
[325400496,1714833039133,-5300.0,0.000129,4]
[325400497,1714833039146,-463.20051336,0.000129,2]
[325400498,1714833039156,-171.28,0.00012984,2]
[325400499,1714833039166,-450.0,0.00012986,2]
[325400500,1714833039176,-173.58541836,0.00012986,2]
[325400501,1714833039186,-191.6168482,0.00012989,2]
[325400502,1714833039195,-1398.9065796,0.00012989,2]
[325400503,1714833039205,-176.85,0.0001299,2]
[325400504,1714833039215,-189.0678847,0.00012991,2]
[325400505,1714833039224,-1380.2977682,0.00012991,2]
[325400506,1714833039236,-281.62325583,0.00012998,2]
[325400507,1714833039245,-225.59221538,0.00012998,2]
[325400508,1714833039255,-5210.0,0.00012998,2]
[325400509,1714833039264,-642.91878868,0.00012998,2]
[325400510,1714833039274,-527.99135838,0.00012998,2]
[325400511,1714833039283,-9287.87214939,0.00012999,2]
[325400512,1714833039293,-236523.22461762,0.00013,2]
[325400513,1714833039304,-3532555.06717865,0.00013,2]
[325400514,1714833039314,-209229.64726548,0.00013,2]
[325400515,1714833039324,-378.26895946,0.00013,2]
[325400516,1714833039333,-1000.0,0.00013,2]
[325400517,1714833039343,-1000.0,0.00013,2]
[325400518,1714833039351,-207590.4495274,0.00013,2]
[325400521,1714833040701,-604.24,0.00013,2]
[325400522,1714833040849,-622.06778806,0.00013,2]
[325400523,1714833040982,-2018.77952243,0.00013,2]
[325400524,1714833040995,-1028.02499988,0.00013,2]
[325400525,1714833041009,-3234.79929208,0.00013,2]
[325400538,1714833044799,-319.66305,0.00013,2]
[325400539,1714833044939,-14672.10560167,0.00013,2]
[325400540,1714833044950,-27884.99890723,0.00013,2]
[325400541,1714833044959,-151.0,0.00013,2]
[325400542,1714833044970,-151.0,0.00013,2]
[325400543,1714833044980,-151.0,0.00013,2]
[325400544,1714833044990,-151.0,0.00013,2]
[325400545,1714833044999,-151.0,0.00013,2]
[325400546,1714833045009,-151.0,0.00013,2]
[325400547,1714833045019,-151.0,0.00013,2]
[325400548,1714833045030,-151.0,0.00013,2]
[325400549,1714833045040,-151.0,0.00013,2]
[325400550,1714833045051,-151.0,0.00013,2]
[325400551,1714833045063,-985.65007,0.00013,2]
[325400552,1714833045073,-985.65007,0.00013,2]
[325400553,1714833045083,-985.65007,0.00013,2]
[325400554,1714833045094,-985.65007,0.00013,2]
[325400555,1714833045104,-985.65007,0.00013,2]
[325400556,1714833045118,-985.65007,0.00013,2]
[325400557,1714833045128,-985.65007,0.00013,2]
[325400558,1714833045140,-985.65007,0.00013,2]
[325400559,1714833045150,-985.65007,0.00013,2]
[325400560,1714833045160,-985.65007,0.00013,2]
[325400561,1714833045170,-680.0,0.00013074,2]
[325400562,1714833045179,-478.82,0.00013151,2]
[325400563,1714833045189,-200.0,0.00013242,2]
[325400564,1714833045200,-840.0,0.00013245,2]
[325400565,1714833045209,-305.71,0.00013274,2]
[325400566,1714833045220,-203.11,0.00013425,2]
[325400567,1714833045230,-582.92,0.00013425,2]
[325400568,1714833045240,-155.13321013,0.000136,2]
[325400569,1714833045250,-200.0,0.00013699,2]
[325400570,1714833045261,-200.0,0.00013699,2]
[325400571,1714833045270,-200.0,0.00013699,2]
[325400572,1714833045280,-151.0,0.00013699,2]
[325400573,1714833045290,-151.0,0.00013699,2]
[325400574,1714833045300,-151.0,0.00013699,2]
[325400575,1714833045310,-151.0,0.00013699,2]
[325400576,1714833045320,-151.0,0.00013699,2]
[325400577,1714833045329,-500.0,0.00013699,2]
[325400578,1714833045340,-200.0,0.00013699,2]
[325400579,1714833045350,-150.0,0.00013699,2]
[325400580,1714833045360,-150.0,0.00013699,2]
[325400581,1714833045371,-150.0,0.00013699,2]
[325400582,1714833045381,-250.0,0.000137,2]
[325400583,1714833045391,-157.15,0.00013724,2]
[325400584,1714833045401,-828.72,0.00013747,2]
[325400585,1714833045411,-365.42,0.00013747,2]
[325400586,1714833045421,-1496.15,0.00013747,2]
[325400587,1714833045431,-1066.37,0.00013756,2]
[325400588,1714833045441,-911.73,0.00013756,2]
[325400589,1714833045451,-433.24,0.00013756,2]
[325400590,1714833045461,-1823.46,0.00013756,2]
[325400591,1714833045470,-985.65007,0.00013756,2]
[325400592,1714833045480,-985.65007,0.00013756,2]
[325400593,1714833045490,-281.91054346,0.00014,2]
[325400594,1714833045499,-10385.34154377,0.00014,2]
[325400595,1714833045509,-151.0,0.00014,2]
[325400596,1714833045520,-151.0,0.00014,2]
[325400597,1714833045530,-180.988944,0.00014,2]
[325400598,1714833045540,-153.31,0.00014,2]
[325400599,1714833045550,-153.31,0.00014,2]
[325400600,1714833045560,-153.31,0.00014,2]
[325400601,1714833045570,-153.31,0.00014,2]
[325400602,1714833045580,-153.31,0.00014,2]
[325400603,1714833045590,-153.335942,0.00014247,2]
[325400604,1714833045600,-350.89,0.00014526,2]
[325400605,1714833045610,-350.89,0.00014526,2]
[325400606,1714833045620,-349.71,0.00014526,2]
[325400607,1714833045630,-150.0,0.00014568,2]
[325400608,1714833045640,-350.89,0.00014568,2]
[325400609,1714833045650,-911.73,0.00014572,2]
[325400610,1714833045660,-911.73,0.00014572,2]
[325400611,1714833045669,-911.73,0.00014572,2]
[325400612,1714833045680,-908.76,0.00014705,2]
[325400613,1714833045690,-414.44,0.00014705,2]
[325400614,1714833045701,-200.0,0.00014713,2]
[325400615,1714833045711,-840.0,0.00014717,2]
[325400616,1714833045721,-305.71,0.00014749,2]
[325400617,1714833045732,-1100.0,0.0001497,2]
[325400618,1714833045741,-619.06155643,0.00015,2]
[325400619,1714833045752,-495.68037961,0.00015,2]
[325400620,1714833045762,-237.6894331,0.00015,2]
[325400621,1714833045772,-484.0,0.00015,2]
[325400622,1714833045782,-838.0,0.00015,2]
[325400623,1714833045792,-5855.0,0.00015,2]
[325400624,1714833045802,-985.65007,0.00015,2]
[325400625,1714833045811,-985.65007,0.00015,2]
[325400626,1714833045821,-153.335942,0.00015068,2]
[325400627,1714833045831,-151.0,0.0001537,2]
[325400628,1714833045842,-151.0,0.0001537,2]
[325400629,1714833045852,-839.32,0.0001539,2]
[325400630,1714833045862,-419.48,0.00015445,2]
[325400631,1714833045872,-522.52,0.00015445,2]
[325400632,1714833045882,-10930.12562191,0.00015536,2]
[325400633,1714833045892,-157.15,0.00015684,2]
[325400634,1714833045902,-167.39,0.00015831,2]
[325400635,1714833045912,-985.65007,0.00015831,2]
[325400636,1714833045922,-985.65007,0.00015831,2]
[325400637,1714833045932,-153.335942,0.0001589,2]
[325400638,1714833045941,-1750.66992767,0.00016,2]
[325400639,1714833045951,-200.0,0.00016185,2]
[325400640,1714833045961,-840.0,0.00016189,2]
[325400641,1714833045971,-302.42,0.00016222,2]
[325400642,1714833045981,-150.0,0.00016222,2]
[325400643,1714833045992,-703.54,0.00016222,2]
[325400644,1714833046003,-522.41,0.00016222,2]
[325400645,1714833046013,-700.86,0.00016222,2]
[325400646,1714833046024,-1060.49,0.00016222,2]
[325400647,1714833046034,-835.9,0.00016222,2]
[325400648,1714833046044,-150.0,0.00016222,2]
[325400649,1714833046055,-350.77,0.00016222,2]
[325400650,1714833046069,-839.04,0.00016222,2]
[325400651,1714833046079,-522.7,0.00016222,2]
[325400652,1714833046089,-150.0,0.00016222,2]
[325400653,1714833046099,-522.7,0.00016222,2]
[325400654,1714833046109,-150.0,0.00016222,2]
[325400655,1714833046121,-522.34,0.00016222,2]
[325400656,1714833046131,-150.0,0.00016222,2]
[325400657,1714833046143,-305.71,0.00016224,2]
[325400658,1714833046154,-555.5,0.0001647,3]
[325400659,1714833046164,-1228.41370709,0.000165,2]
[325400660,1714833046174,-151.0,0.000165,2]
[325400661,1714833046184,-220.358555,0.000165,2]
[325400662,1714833046194,-915.22,0.00016623,2]
[325400663,1714833046204,-911.73,0.00016623,2]
[325400664,1714833046214,-167.39,0.00016702,2]
[325400665,1714833046223,-153.335942,0.00016712,2]
[325400666,1714833046234,-175.31,0.00016712,2]
[325400667,1714833046244,-797.0,0.000168,2]
[325400668,1714833046253,-3000.0,0.00016931,2]
[325400669,1714833046263,-700.0,0.0001697,2]
[325400670,1714833046274,-179.98506405,0.00017,2]
[325400671,1714833046284,-188.08677187,0.00017,2]
[325400672,1714833046293,-661.27543005,0.00017,2]
[325400673,1714833046303,-350.89,0.00017034,2]
[325400674,1714833046313,-337.72,0.00017034,2]
[325400675,1714833046323,-985.65007,0.00017044,2]
[325400677,1714833046334,-985.65007,0.00017044,2]
[325400679,1714833046343,-1000.0,0.000172,2]
[325400680,1714833046353,-153.335942,0.00017534,2]
[325400681,1714833046362,-167.39,0.00017573,2]
[325400682,1714833046372,-157.15,0.00017645,2]
[325400683,1714833046382,-200.0,0.00017656,2]
[325400684,1714833046391,-840.0,0.00017661,2]
[325400685,1714833046401,-305.71,0.00017698,2]
[325400686,1714833046411,-221.8,0.00017723,2]
[325400687,1714833046420,-500.0,0.000178,2]
[325400688,1714833046432,-151.0,0.00017856,2]
[325400689,1714833046441,-8510.71240231,0.0001788,2]
[325400690,1714833046451,-8510.71240222,0.0001788,2]
[325400691,1714833046461,-5878.76557493,0.0001788,2]
[325400692,1714833046471,-5878.76557485,0.0001788,2]
[325400693,1714833046481,-155.0,0.00018,2]
[325400694,1714833046490,-450.0,0.00018,3]
[325400695,1714833046500,-10930.12562191,0.00018173,2]
[325400696,1714833046510,-151.0,0.00018173,2]
[325400697,1714833046520,-985.65007,0.00018173,2]
[325400698,1714833046530,-985.650064,0.00018173,2]
[325400699,1714833046540,-153.335942,0.00018356,2]
[325400700,1714833046550,-167.39,0.00018444,2]
[325400701,1714833046559,-555.5,0.00018808,3]
[325400702,1714833046570,-23377.98225501,0.00019,5]
[325400703,1714833046580,-500.0,0.00019,2]
[325400704,1714833046589,-500.0,0.00019,2]
[325400705,1714833046599,-500.0,0.00019,2]
[325400706,1714833046609,-500.0,0.00019,2]
[325400707,1714833046620,-500.0,0.00019,2]
[325400708,1714833046631,-500.0,0.00019,2]
[325400709,1714833046640,-500.0,0.00019,2]
[325400710,1714833046650,-500.0,0.00019,2]
[325400711,1714833046660,-500.0,0.00019,2]
[325400712,1714833046670,-500.0,0.00019,2]
[325400713,1714833046679,-500.0,0.00019,2]
[325400714,1714833046689,-500.0,0.00019,2]
[325400715,1714833046699,-500.0,0.00019,2]
[325400716,1714833046709,-500.0,0.00019,2]
[325400717,1714833046720,-500.0,0.00019,2]
[325400718,1714833046730,-500.0,0.00019,2]
[325400719,1714833046740,-500.0,0.00019,2]
[325400720,1714833046749,-500.0,0.00019,2]
[325400721,1714833046759,-500.0,0.00019,2]
[325400722,1714833046768,-500.0,0.00019,2]
[325400723,1714833046778,-500.0,0.00019,2]
[325400724,1714833046789,-500.0,0.00019,2]
[325400725,1714833046800,-500.0,0.00019,2]
[325400726,1714833046810,-500.0,0.00019,2]
[325400727,1714833046819,-500.0,0.00019,2]
[325400728,1714833046829,-500.0,0.00019,2]
[325400729,1714833046839,-500.0,0.00019,2]
[325400730,1714833046849,-500.0,0.00019,2]
[325400731,1714833046859,-500.0,0.00019,2]
[325400732,1714833046870,-500.0,0.00019,2]
[325400733,1714833046880,-269.8,0.00019,2]
[325400734,1714833046890,-500.0,0.00019,2]
[325400735,1714833046900,-500.0,0.00019,2]
[325400736,1714833046909,-500.0,0.00019,2]
[325400737,1714833046918,-500.0,0.00019,2]
[325400738,1714833046928,-500.0,0.00019,2]
[325400739,1714833047026,-500.0,0.00019,2]
[325400742,1714833047037,-500.0,0.00019,2]
[325400743,1714833047046,-500.0,0.00019,2]
[325400745,1714833047058,-500.0,0.00019,2]
[325400747,1714833047070,-500.0,0.00019,2]
[325400748,1714833047079,-500.0,0.00019,2]
[325400749,1714833047088,-500.0,0.00019,2]
[325400750,1714833047099,-500.0,0.00019,2]
[325400751,1714833047108,-500.0,0.00019,2]
[325400752,1714833047119,-500.0,0.00019,2]
[325400753,1714833047128,-500.0,0.00019,2]
[325400754,1714833047140,-500.0,0.00019,2]
[325400755,1714833047150,-500.0,0.00019,2]
[325400756,1714833047160,-500.0,0.00019,2]
[325400757,1714833047169,-500.0,0.00019,2]
[325400758,1714833047179,-500.0,0.00019,2]
[325400759,1714833047189,-500.0,0.00019,2]